fUST/lending_fUST_20250827
["ID","MTS","AMOUNT","RATE_DAILY","PERIOD"]
[381610497,1756295524710,-728.82,0.00025205,2]
[381610498,1756295524721,-1786.79,0.00025205,2]
[381610499,1756295524731,-480.0,0.00025205,2]
[381610500,1756295524740,-567.43,0.00025205,2]
[381610501,1756295524750,-2132.63,0.00025205,2]
[381610502,1756295524760,-480.0,0.00025205,2]
[381610503,1756295524769,-599.6,0.00025205,2]
[381610504,1756295524779,-480.0,0.00025205,2]
[381610505,1756295524789,-480.0,0.00025205,2]
[381610506,1756295524798,-480.0,0.00025205,2]
[381610507,1756295524808,-555.01,0.00025205,2]
[381610508,1756295524818,-480.0,0.00025205,2]
[381610509,1756295524828,-480.0,0.00025205,2]
[381610510,1756295524839,-480.0,0.00025205,2]
[381610511,1756295524850,-608.26,0.00025205,2]
[381610512,1756295524865,-480.0,0.00025205,2]
[381610513,1756295524877,-788.63,0.00025205,2]
[381610514,1756295524889,-733.12,0.00025205,2]
[381610515,1756295524901,-491.85,0.00025205,2]
[381610516,1756295524912,-523.6,0.00025205,2]
[381610517,1756295524924,-4246.52,0.00025205,2]
[381610518,1756295524936,-598.52,0.00025205,2]
[381610519,1756295524947,-972.86,0.00025205,2]
[381610520,1756295524957,-568.62,0.00025205,2]
[381610521,1756295524968,-480.0,0.00025205,2]
[381610522,1756295524977,-480.0,0.00025205,2]
[381610523,1756295524988,-573.08,0.00025205,2]
[381610524,1756295524998,-543.52,0.00025205,2]
[381610525,1756295525010,-506.41,0.00025205,2]
[381610526,1756295525020,-556.45,0.00025205,2]
[381610527,1756295525032,-480.0,0.00025205,2]
[381610528,1756295525042,-480.0,0.00025205,2]
[381610529,1756295525052,-480.0,0.00025205,2]
[381610530,1756295525062,-480.0,0.00025205,2]
[381610531,1756295525071,-480.0,0.00025205,2]
[381610532,1756295525081,-743.34,0.00025205,2]
[381610533,1756295525091,-614.77,0.00025205,2]
[381610534,1756295525103,-480.0,0.00025205,2]
[381610535,1756295525112,-480.0,0.00025205,2]
[381610536,1756295525122,-480.0,0.00025205,2]
[381610537,1756295525132,-1174.5,0.00025205,2]
[381610538,1756295525143,-480.0,0.00025205,2]
[381610539,1756295525153,-480.0,0.00025205,2]
[381610540,1756295525164,-480.0,0.00025205,2]
[381610541,1756295525174,-480.0,0.00025205,2]
[381610542,1756295525185,-824.65,0.00025205,2]
[381610543,1756295525195,-480.0,0.00025205,2]
[381610544,1756295525206,-480.0,0.00025205,2]
[381610545,1756295525218,-897.27,0.00025205,2]
[381610546,1756295525228,-771.07,0.00025205,2]
[381610547,1756295525238,-480.0,0.00025205,2]
[381610548,1756295525248,-480.0,0.00025205,2]
[381610549,1756295525260,-504.69,0.00025205,2]
[381610550,1756295525271,-1094.25,0.00025205,2]
[381610551,1756295525281,-480.0,0.00025205,2]
[381610552,1756295525293,-435.93063291,0.00025205,2]
[381610553,1756295525303,-480.0,0.00025205,2]
[381610554,1756295525314,-1176.51,0.00025205,2]
[381610555,1756295525323,-833.03,0.00025205,2]
[381610556,1756295525334,-480.0,0.00025205,2]
[381610557,1756295525344,-483.29,0.00025205,2]
[381610558,1756295525354,-480.0,0.00025205,2]
[381610559,1756295525364,-650.46,0.00025205,2]
[381610560,1756295525375,-536.02,0.00025205,2]
[381610561,1756295525386,-2316.32,0.00025205,2]
[381610562,1756295525397,-480.0,0.00025205,2]
[381610563,1756295525408,-633.07,0.00025205,2]
[381610564,1756295525419,-480.0,0.00025205,2]
[381610565,1756295525430,-480.0,0.00025205,2]
[381610566,1756295525441,-392.23016764,0.00025205,2]
[381610567,1756295525452,-692.43,0.00025205,2]
[381610568,1756295525463,-480.0,0.00025205,2]
[381610569,1756295525475,-617.59,0.00025205,2]
[381610570,1756295525486,-518.17,0.00025205,2]
[381610571,1756295525497,-604.0,0.00025205,2]
[381610572,1756295525507,-480.0,0.00025205,2]
[381610573,1756295525518,-500.09,0.00025205,2]
[381610574,1756295525530,-480.0,0.00025205,2]
[381610575,1756295525542,-426.40554061,0.00025205,2]
[381610576,1756295525554,-480.0,0.00025205,2]
[381610577,1756295525566,-603.45,0.00025205,2]
[381610578,1756295525578,-480.0,0.00025205,2]
[381610579,1756295525590,-480.0,0.00025205,2]
[381610580,1756295525600,-525.14,0.00025205,2]
[381610581,1756295525611,-480.0,0.00025205,2]
[381610582,1756295525624,-546.45,0.00025205,2]
[381610583,1756295525636,-480.0,0.00025205,2]
[381610584,1756295525647,-495.46,0.00025205,2]
[381610585,1756295525659,-494.23,0.00025205,2]
[381610586,1756295525670,-480.0,0.00025205,2]
[381610587,1756295525681,-752.07,0.00025205,2]
[381610588,1756295525693,-522.4,0.00025205,2]
[381610589,1756295525703,-480.0,0.00025205,2]
[381610590,1756295525713,-438.71594862,0.00025205,2]
[381610591,1756295525723,-1143.26,0.00025205,2]
[381610592,1756295525734,-698.99,0.00025205,2]
[381610593,1756295525745,-606.55,0.00025205,2]
[381610594,1756295525756,-755.57,0.00025205,2]
[381610595,1756295525767,-740.17,0.00025205,2]
[381610596,1756295525777,-480.0,0.00025205,2]
[381610597,1756295525787,-839.06,0.00025205,2]
[381610598,1756295525798,-558.04,0.00025205,2]
[381610599,1756295525809,-480.0,0.00025205,2]
[381610600,1756295525819,-562.18835721,0.00025205,2]
[381610601,1756295525829,-576.43,0.00025205,2]
[381610602,1756295525840,-480.0,0.00025205,2]
[381610603,1756295525850,-527.26,0.00025205,2]
[381610604,1756295525864,-564.31,0.00025205,2]
[381610605,1756295525874,-525.48,0.00025205,2]
[381610606,1756295525885,-480.0,0.00025205,2]
[381610607,1756295525896,-480.0,0.00025205,2]
[381610608,1756295525907,-480.0,0.00025205,2]
[381610609,1756295525917,-706.22,0.00025205,2]
[381610610,1756295525928,-480.0,0.00025205,2]
[381610611,1756295525940,-550.82,0.00025205,2]
[381610612,1756295525950,-926.56,0.00025205,2]
[381610613,1756295525961,-924.56,0.00025205,2]
[381610614,1756295525972,-480.0,0.00025205,2]
[381610615,1756295525982,-625.16,0.00025205,2]
[381610616,1756295525993,-480.0,0.00025205,2]
[381610617,1756295526005,-480.0,0.00025205,2]
[381610618,1756295526017,-480.0,0.00025205,2]
[381610619,1756295526031,-613.93,0.00025205,2]
[381610620,1756295526043,-480.0,0.00025205,2]
[381610621,1756295526055,-732.55,0.00025205,2]
[381610622,1756295526066,-480.0,0.00025205,2]
[381610623,1756295526077,-480.0,0.00025205,2]
[381610624,1756295526087,-480.0,0.00025205,2]
[381610625,1756295526098,-480.0,0.00025205,2]
[381610626,1756295526108,-502.03,0.00025205,2]
[381610627,1756295526119,-513.59,0.00025205,2]
[381610628,1756295526129,-9670.89,0.00025205,2]
[381610629,1756295526140,-524.29,0.00025205,2]
[381610630,1756295526150,-480.0,0.00025205,2]
[381610631,1756295526163,-1383.3,0.00025205,2]
[381610632,1756295526173,-655.08,0.00025205,2]
[381610633,1756295526184,-362.3873476,0.00025205,2]
[381610634,1756295526194,-480.0,0.00025205,2]
[381610635,1756295526205,-480.0,0.00025205,2]
[381610636,1756295526217,-665.82,0.00025205,2]
[381610637,1756295526229,-480.0,0.00025205,2]
[381610638,1756295526378,-480.0,0.00025205,2]
[381610639,1756295526389,-480.0,0.00025205,2]
[381610640,1756295526401,-480.0,0.00025205,2]
[381610641,1756295526413,-737.63,0.00025205,2]
[381610642,1756295526425,-480.0,0.00025205,2]
[381610643,1756295526437,-1275.55,0.00025205,2]
[381610644,1756295526447,-941.67,0.00025205,2]
[381610645,1756295526459,-480.0,0.00025205,2]
[381610646,1756295526470,-527.84,0.00025205,2]
[381610647,1756295526481,-480.0,0.00025205,2]
[381610648,1756295526491,-1377.54,0.00025205,2]
[381610649,1756295526501,-480.0,0.00025205,2]
[381610650,1756295526511,-544.18,0.00025205,2]
[381610651,1756295526524,-2005.67,0.00025205,2]
[381610652,1756295526536,-605.81,0.00025205,2]
[381610653,1756295526546,-480.0,0.00025205,2]
[381610654,1756295526558,-486.23,0.00025205,2]
[381610655,1756295526569,-611.10822114,0.00025205,2]
[381610656,1756295526581,-572.5,0.00025205,2]
[381610657,1756295526594,-1511.66,0.00025205,2]
[381610658,1756295526606,-1734.3,0.00025205,2]
[381610659,1756295526618,-3755.94,0.00025205,2]
[381610660,1756295526630,-831.34,0.00025205,2]
[381610661,1756295526641,-480.0,0.00025205,2]
[381610662,1756295526653,-310.06514208,0.00025205,2]
[381610663,1756295526664,-707.25,0.00025205,2]
[381610664,1756295526675,-2885.3,0.00025205,2]
[381610665,1756295526686,-667.09,0.00025205,2]
[381610666,1756295526696,-480.0,0.00025205,2]
[381610667,1756295526708,-1275.32,0.00025205,2]
[381610668,1756295526719,-480.0,0.00025205,2]
[381610669,1756295526731,-562.26,0.00025205,2]
[381610670,1756295526741,-489.14,0.00025205,2]
[381610671,1756295526751,-3844.16,0.00025205,2]
[381610672,1756295526761,-265.75587695,0.00025205,2]
[381610673,1756295526772,-1682.7,0.00025205,2]
[381610674,1756295526783,-1992.53,0.00025205,2]
[381610675,1756295526794,-480.0,0.00025205,2]
[381610676,1756295526804,-1281.38,0.00025205,2]
[381610677,1756295526814,-480.0,0.00025205,2]
[381610678,1756295526826,-480.0,0.00025205,2]
[381610679,1756295526838,-833.25,0.00025205,2]
[381610680,1756295526849,-480.0,0.00025205,2]
[381610681,1756295526863,-480.0,0.00025205,2]
[381610682,1756295526874,-480.0,0.00025205,2]
[381610683,1756295526885,-480.0,0.00025205,2]
[381610684,1756295526896,-480.0,0.00025205,2]
[381610685,1756295526908,-480.0,0.00025205,2]
[381610686,1756295526919,-480.0,0.00025205,2]
[381610687,1756295526930,-480.0,0.00025205,2]
[381610688,1756295526940,-175.91222493,0.00025205,2]
[381610689,1756295526950,-824.64,0.00025205,2]
[381610690,1756295526961,-1267.55,0.00025205,2]
[381610691,1756295526972,-1138.38,0.00025205,2]
[381610692,1756295526983,-480.0,0.00025205,2]
[381610693,1756295526993,-480.0,0.00025205,2]
[381610694,1756295527005,-495.31,0.00025205,2]
[381610695,1756295527016,-934.3,0.00025205,2]
[381610696,1756295527026,-480.0,0.00025205,2]
[381610697,1756295527038,-776.73,0.00025205,2]
[381610698,1756295527048,-480.0,0.00025205,2]
[381610699,1756295527059,-480.0,0.00025205,2]
[381610700,1756295527070,-480.0,0.00025205,2]
[381610701,1756295527082,-557.28,0.00025205,2]
[381610702,1756295527093,-535.56,0.00025205,2]
[381610703,1756295527105,-200.04,0.00025205,2]
[381610704,1756295527115,-480.0,0.00025205,2]
[381610705,1756295527126,-639.28,0.00025205,2]
[381610706,1756295527138,-480.0,0.00025205,2]
[381610707,1756295527148,-480.0,0.00025205,2]
[381610708,1756295527160,-480.0,0.00025205,2]
[381610709,1756295527171,-1717.2,0.00025205,2]
[381610710,1756295527180,-480.0,0.00025205,2]
[381610711,1756295527191,-2626.17,0.00025205,2]
[381610712,1756295527202,-932.54,0.00025205,2]
[381610713,1756295527214,-484.63,0.00025205,2]
[381610714,1756295527225,-717.77,0.00025205,2]
[381610715,1756295527236,-1227.94,0.00025205,2]
[381610716,1756295527247,-607.71,0.00025205,2]
[381610717,1756295527258,-480.0,0.00025205,2]
[381610718,1756295527270,-5360.08,0.00025205,2]
[381610719,1756295527282,-636.41,0.00025205,2]
[381610720,1756295527292,-480.0,0.00025205,2]
[381610721,1756295527304,-7837.73,0.00025205,2]
[381610722,1756295527316,-525.03,0.00025205,2]
[381610723,1756295527328,-784.27,0.00025205,2]
[381610724,1756295527339,-974.32,0.00025205,2]
[381610725,1756295527350,-480.0,0.00025205,2]
[381610726,1756295527361,-480.0,0.00025205,2]
[381610727,1756295527372,-2604.37,0.00025205,2]
[381610728,1756295527383,-480.0,0.00025205,2]
[381610729,1756295527394,-480.0,0.00025205,2]
[381610730,1756295527405,-480.0,0.00025205,2]
[381610731,1756295527416,-480.0,0.00025205,2]
[381610732,1756295527427,-486.44,0.00025205,2]
[381610733,1756295527438,-1424.05,0.00025205,2]
[381610734,1756295527450,-480.0,0.00025205,2]
[381610735,1756295527462,-480.0,0.00025205,2]
[381610736,1756295527475,-480.0,0.00025205,2]
[381610737,1756295527487,-850.03,0.00025205,2]
[381610738,1756295527500,-480.0,0.00025205,2]
[381610739,1756295527512,-480.0,0.00025205,2]
[381610740,1756295527523,-480.0,0.00025205,2]
[381610741,1756295527535,-480.0,0.00025205,2]
[381610742,1756295527548,-512.47,0.00025205,2]
[381610743,1756295527559,-2434.53,0.00025205,2]
[381610744,1756295527570,-1080.79,0.00025205,2]
[381610745,1756295527581,-753.46,0.00025205,2]
[381610746,1756295527593,-527.3,0.00025205,2]
[381610747,1756295527604,-1150.08,0.00025205,2]
[381610748,1756295527617,-480.0,0.00025205,2]
[381610749,1756295527629,-480.0,0.00025205,2]
[381610750,1756295527642,-716.6,0.00025205,2]
[381610751,1756295527654,-480.0,0.00025205,2]
[381610752,1756295527666,-480.0,0.00025205,2]
[381610753,1756295527677,-480.0,0.00025205,2]
[381610754,1756295527688,-480.0,0.00025205,2]
[381610755,1756295527700,-799.46,0.00025205,2]
[381610756,1756295527711,-528.16,0.00025205,2]
[381610757,1756295527722,-5059.84,0.00025205,2]
[381610758,1756295527731,-480.0,0.00025205,2]
[381610759,1756295527742,-518.25,0.00025205,2]
[381610760,1756295527753,-582.84,0.00025205,2]
[381610761,1756295527765,-556.45,0.00025205,2]
[381610762,1756295527777,-1272.66,0.00025205,2]
[381610763,1756295527788,-480.0,0.00025205,2]
[381610764,1756295527798,-480.0,0.00025205,2]
[381610765,1756295527809,-684.68,0.00025205,2]
[381610766,1756295527820,-250.0,0.00025205,2]
[381610767,1756295527832,-500.0,0.00025206,2]
[381610768,1756295527842,-4500.0,0.00025256,2]
[381610769,1756295527852,-204.112727,0.00025267,2]
[381610770,1756295527865,-988.203,0.00025357,2]
[381610771,1756295527876,-2157.0,0.00025357,2]
[381610772,1756295527886,-638.0,0.00025357,2]
[381610773,1756295527896,-289.974,0.00025357,2]
[381610774,1756295527906,-158.91,0.00025397,5]
[381610775,1756295527916,-973.0,0.00025458,2]
[381610776,1756295527926,-3500.0,0.0002546,2]
[381610777,1756295527940,-806.87104197,0.0002546,2]
[381610778,1756295527950,-728.82,0.00025479,2]
[381610779,1756295527960,-1786.79,0.00025479,2]
[381610780,1756295527969,-480.0,0.00025479,2]
[381610781,1756295527981,-567.43,0.00025479,2]
[381610782,1756295527991,-2132.63,0.00025479,2]
[381610783,1756295528002,-480.0,0.00025479,2]
[381610784,1756295528012,-599.6,0.00025479,2]
[381610785,1756295528022,-480.0,0.00025479,2]
[381610786,1756295528032,-480.0,0.00025479,2]
[381610787,1756295528042,-480.0,0.00025479,2]
[381610788,1756295528053,-555.01,0.00025479,2]
[381610789,1756295528063,-480.0,0.00025479,2]
[381610790,1756295528073,-534.78474961,0.00025479,2]
[381610791,1756295528083,-276.73015669,0.00025479,2]
[381610792,1756295528093,-608.26,0.00025479,2]
[381610793,1756295528104,-480.0,0.00025479,2]
[381610794,1756295528113,-788.63,0.00025479,2]
[381610795,1756295528123,-733.12,0.00025479,2]
[381610796,1756295528133,-491.85,0.00025479,2]
[381610797,1756295528143,-523.6,0.00025479,2]
[381610798,1756295528153,-4246.52,0.00025479,2]
[381610799,1756295528163,-598.52,0.00025479,2]
[381610800,1756295528172,-972.86,0.00025479,2]
[381610801,1756295528182,-568.62,0.00025479,2]
[381610802,1756295528193,-480.0,0.00025479,2]
[381610803,1756295528202,-480.0,0.00025479,2]
[381610804,1756295528212,-573.08,0.00025479,2]
[381610805,1756295528225,-543.52,0.00025479,2]
[381610806,1756295528235,-506.41,0.00025479,2]
[381610807,1756295528244,-556.45,0.00025479,2]
[381610808,1756295528255,-191.60325176,0.00025479,2]
[381610809,1756295528265,-480.0,0.00025479,2]
[381610810,1756295528275,-480.0,0.00025479,2]
[381610811,1756295528285,-571.12978741,0.00025479,2]
[381610812,1756295528294,-480.0,0.00025479,2]
[381610813,1756295528304,-743.34,0.00025479,2]
[381610814,1756295528313,-614.77,0.00025479,2]
[381610815,1756295528324,-480.0,0.00025479,2]
[381610816,1756295528335,-480.0,0.00025479,2]
[381610817,1756295528346,-480.0,0.00025479,2]
[381610818,1756295528356,-1174.5,0.00025479,2]
[381610819,1756295528367,-560.42056936,0.00025479,2]
[381610820,1756295528377,-480.0,0.00025479,2]
[381610821,1756295528387,-480.0,0.00025479,2]
[381610822,1756295528397,-480.0,0.00025479,2]
[381610823,1756295528407,-824.65,0.00025479,2]
[381610824,1756295528416,-183.28688368,0.00025479,2]
[381610825,1756295528427,-480.0,0.00025479,2]
[381610826,1756295528437,-897.27,0.00025479,2]
[381610827,1756295528447,-771.07,0.00025479,2]
[381610828,1756295528456,-480.0,0.00025479,2]
[381610829,1756295528465,-480.0,0.00025479,2]
[381610830,1756295528476,-504.69,0.00025479,2]
[381610831,1756295528487,-1094.25,0.00025479,2]
[381610832,1756295528496,-480.0,0.00025479,2]
[381610833,1756295528506,-480.0,0.00025479,2]
[381610834,1756295528516,-1176.51,0.00025479,2]
[381610835,1756295528526,-833.03,0.00025479,2]
[381610836,1756295528536,-480.0,0.00025479,2]
[381610837,1756295528546,-483.29,0.00025479,2]
[381610838,1756295528557,-480.0,0.00025479,2]
[381610839,1756295528568,-650.46,0.00025479,2]
[381610840,1756295528577,-536.02,0.00025479,2]
[381610841,1756295528587,-2316.32,0.00025479,2]
[381610842,1756295528597,-480.0,0.00025479,2]
[381610843,1756295528607,-633.07,0.00025479,2]
[381610844,1756295528616,-480.0,0.00025479,2]
[381610845,1756295528627,-480.0,0.00025479,2]
[381610846,1756295528637,-692.43,0.00025479,2]
[381610847,1756295528647,-480.0,0.00025479,2]
[381610848,1756295528656,-617.59,0.00025479,2]
[381610849,1756295528666,-518.17,0.00025479,2]
[381610850,1756295528677,-604.0,0.00025479,2]
[381610851,1756295528687,-480.0,0.00025479,2]
[381610852,1756295528697,-500.09,0.00025479,2]
[381610853,1756295528708,-480.0,0.00025479,2]
[381610854,1756295528719,-480.0,0.00025479,2]
[381610855,1756295528730,-603.45,0.00025479,2]
[381610856,1756295528739,-480.0,0.00025479,2]
[381610857,1756295528749,-480.0,0.00025479,2]
[381610858,1756295528759,-525.14,0.00025479,2]
[381610859,1756295528769,-480.0,0.00025479,2]
[381610860,1756295528780,-546.45,0.00025479,2]
[381610861,1756295528792,-480.0,0.00025479,2]
[381610862,1756295528802,-495.46,0.00025479,2]
[381610863,1756295528813,-494.23,0.00025479,2]
[381610864,1756295528949,-480.0,0.00025479,2]
[381610865,1756295528960,-752.07,0.00025479,2]
[381610866,1756295528970,-522.4,0.00025479,2]
[381610867,1756295528980,-480.0,0.00025479,2]
[381610868,1756295528990,-1143.26,0.00025479,2]
[381610869,1756295528999,-698.99,0.00025479,2]
[381610870,1756295529010,-606.55,0.00025479,2]
[381610871,1756295529020,-755.57,0.00025479,2]
[381610872,1756295529032,-740.17,0.00025479,2]
[381610873,1756295529044,-480.0,0.00025479,2]
[381610874,1756295529054,-839.06,0.00025479,2]
[381610875,1756295529064,-558.04,0.00025479,2]
[381610876,1756295529074,-480.0,0.00025479,2]
[381610877,1756295529084,-576.43,0.00025479,2]
[381610878,1756295529095,-480.0,0.00025479,2]
[381610879,1756295529105,-527.26,0.00025479,2]
[381610880,1756295529116,-564.31,0.00025479,2]
[381610881,1756295529125,-525.48,0.00025479,2]
[381610882,1756295529134,-480.0,0.00025479,2]
[381610883,1756295529144,-163.18196445,0.00025479,2]
[381610884,1756295529154,-480.0,0.00025479,2]
[381610885,1756295529165,-706.22,0.00025479,2]
[381610886,1756295529175,-480.0,0.00025479,2]
[381610887,1756295529184,-550.82,0.00025479,2]
[381610888,1756295529194,-926.56,0.00025479,2]
[381610889,1756295529204,-924.56,0.00025479,2]
[381610890,1756295529214,-480.0,0.00025479,2]
[381610891,1756295529223,-625.16,0.00025479,2]
[381610892,1756295529233,-480.0,0.00025479,2]
[381610893,1756295529242,-480.0,0.00025479,2]
[381610894,1756295529252,-459.07763471,0.00025479,2]
[381610895,1756295529262,-613.93,0.00025479,2]
[381610896,1756295529272,-480.0,0.00025479,2]
[381610897,1756295529282,-732.55,0.00025479,2]
[381610898,1756295529293,-480.0,0.00025479,2]
[381610899,1756295529302,-480.0,0.00025479,2]
[381610900,1756295529312,-251.80891347,0.00025479,2]
[381610901,1756295529322,-480.0,0.00025479,2]
[381610902,1756295529331,-502.03,0.00025479,2]
[381610903,1756295529340,-513.59,0.00025479,2]
[381610904,1756295529350,-9670.89,0.00025479,2]
[381610905,1756295529360,-524.29,0.00025479,2]
[381610906,1756295529371,-480.0,0.00025479,2]
[381610907,1756295529380,-1383.3,0.00025479,2]
[381610908,1756295529390,-655.08,0.00025479,2]
[381610909,1756295529399,-480.0,0.00025479,2]
[381610910,1756295529408,-480.0,0.00025479,2]
[381610911,1756295529418,-665.82,0.00025479,2]
[381610912,1756295529428,-480.0,0.00025479,2]
[381610913,1756295529438,-480.0,0.00025479,2]
[381610914,1756295529447,-480.0,0.00025479,2]
[381610915,1756295529458,-480.0,0.00025479,2]
[381610916,1756295529468,-737.63,0.00025479,2]
[381610917,1756295529479,-480.0,0.00025479,2]
[381610918,1756295529489,-1275.55,0.00025479,2]
[381610919,1756295529498,-941.67,0.00025479,2]
[381610920,1756295529507,-397.7687542,0.00025479,2]
[381610921,1756295529517,-527.84,0.00025479,2]
[381610922,1756295529526,-480.0,0.00025479,2]
[381610923,1756295529535,-1377.54,0.00025479,2]
[381610924,1756295529545,-480.0,0.00025479,2]
[381610925,1756295529556,-544.18,0.00025479,2]
[381610926,1756295529566,-2005.67,0.00025479,2]
[381610927,1756295529575,-605.81,0.00025479,2]
[381610928,1756295529584,-480.0,0.00025479,2]
[381610929,1756295529594,-486.23,0.00025479,2]
[381610930,1756295529604,-572.5,0.00025479,2]
[381610931,1756295529624,-1511.66,0.00025479,2]
[381610932,1756295529633,-1734.3,0.00025479,2]
[381610933,1756295529643,-3755.94,0.00025479,2]
[381610934,1756295529653,-831.34,0.00025479,2]
[381610935,1756295529663,-480.0,0.00025479,2]
[381610936,1756295529672,-707.25,0.00025479,2]
[381610937,1756295529682,-2885.3,0.00025479,2]
[381610938,1756295529691,-667.09,0.00025479,2]
[381610939,1756295529703,-480.0,0.00025479,2]
[381610940,1756295529719,-1275.32,0.00025479,2]
[381610941,1756295529730,-480.0,0.00025479,2]
[381610942,1756295529739,-562.26,0.00025479,2]
[381610943,1756295529748,-489.14,0.00025479,2]
[381610944,1756295529758,-3844.16,0.00025479,2]
[381610945,1756295529767,-1682.7,0.00025479,2]
[381610946,1756295529777,-1992.53,0.00025479,2]
[381610947,1756295529787,-480.0,0.00025479,2]
[381610948,1756295529797,-1281.38,0.00025479,2]
[381610949,1756295529807,-480.0,0.00025479,2]
[381610950,1756295529817,-480.0,0.00025479,2]
[381610951,1756295529827,-833.25,0.00025479,2]
[381610952,1756295529838,-480.0,0.00025479,2]
[381610953,1756295529850,-480.0,0.00025479,2]
[381610954,1756295529863,-480.0,0.00025479,2]
[381610955,1756295529873,-480.0,0.00025479,2]
[381610956,1756295529883,-480.0,0.00025479,2]
[381610957,1756295529892,-480.0,0.00025479,2]
[381610958,1756295529902,-480.0,0.00025479,2]
[381610959,1756295529912,-480.0,0.00025479,2]
[381610960,1756295529922,-824.64,0.00025479,2]
[381610961,1756295529931,-1267.55,0.00025479,2]
[381610962,1756295529941,-1138.38,0.00025479,2]
[381610963,1756295529951,-480.0,0.00025479,2]
[381610964,1756295529960,-495.31,0.00025479,2]
[381610965,1756295529970,-934.3,0.00025479,2]
[381610966,1756295529979,-480.0,0.00025479,2]
[381610967,1756295529989,-776.73,0.00025479,2]
[381610968,1756295529998,-480.0,0.00025479,2]
[381610969,1756295530008,-480.0,0.00025479,2]
[381610970,1756295530017,-480.0,0.00025479,2]
[381610971,1756295530027,-557.28,0.00025479,2]
[381610972,1756295530037,-535.56,0.00025479,2]
[381610973,1756295530047,-200.04,0.00025479,2]
[381610974,1756295530057,-480.0,0.00025479,2]
[381610975,1756295530066,-199.66941231,0.00025479,2]
[381610976,1756295530075,-639.28,0.00025479,2]
[381610977,1756295530085,-480.0,0.00025479,2]
[381610978,1756295530095,-480.0,0.00025479,2]
[381610979,1756295530104,-1717.2,0.00025479,2]
[381610980,1756295530113,-480.0,0.00025479,2]
[381610981,1756295530122,-2626.17,0.00025479,2]
[381610982,1756295530131,-932.54,0.00025479,2]
[381610983,1756295530140,-484.63,0.00025479,2]
[381610984,1756295530150,-717.77,0.00025479,2]
[381610985,1756295530160,-1227.94,0.00025479,2]
[381610986,1756295530170,-607.71,0.00025479,2]
[381610987,1756295530180,-480.0,0.00025479,2]
[381610988,1756295530191,-5360.08,0.00025479,2]
[381610989,1756295530200,-636.41,0.00025479,2]
[381610990,1756295530210,-480.0,0.00025479,2]
[381610991,1756295530219,-7837.73,0.00025479,2]
[381610992,1756295530229,-525.03,0.00025479,2]
[381610993,1756295530240,-784.27,0.00025479,2]
[381610994,1756295530250,-974.32,0.00025479,2]
[381610995,1756295530260,-480.0,0.00025479,2]
[381610996,1756295530270,-480.0,0.00025479,2]